Workbook

Sheet Palkanlaskennan tiedot
B1: PALKKALASKURI | K1: JAKSO LOPPUU: | L1: 2013-04-08 | N1: YRITYKSEN NIMI: | P1: ADVENTURE WORKS
B3: Tunnus | C3: Työntekijän nimi | D3: Normaalit työtunnit | E3: Lomatunnit | F3: Sairas- poissaolot | G3: Ylityötunnit | H3: Ylityökorvaus | I3: Brutto- palkka | J3: Verot ja vähennykset | K3: Muut vähennykset | L3: Nettopalkka | N3: Tuntipalkka | O3: Vero- status | P3: Valtion korvaus | Q3: Kunnallis- vero | R3: Tulovero | S3: Sosiaaliturva- maksu | T3: Kirkollisvero | U3: Pidätetyt verot yhteensä | V3: Vakuutusvähennys | W3: Muu säänn. vähennys | X3: Säänn. vähennykset
B4: 1001 | C4: Esko Sario | D4: 50 | E4: 5 | F4: 1 | I4: =SUM(Työntekijät[[#This Row],[Normaalit työtunnit]:[Sairas- poissaolot]])*Työntekijät[[#This Row],[Tuntipalkka]]+Työntekijät[[#This Row],[Ylityötunnit]]*Työntekijät[[#This Row],[Ylityökorvaus]] -> 560 | J4: =Työntekijät[[#This Row],[Brutto- palkka]]*Työntekijät[[#This Row],[Pidätetyt verot yhteensä]] + Työntekijät[[#This Row],[Säänn. vähennykset]] -> 273.08 | K4: 20 | L4: =Työntekijät[[#This Row],[Brutto- palkka]]-Työntekijät[[#This Row],[Verot ja vähennykset]]-Työntekijät[[#This Row],[Muut vähennykset]] -> 266.92 | N4: 10 | O4: 1 | P4: 4 | Q4: 0.023 | R4: 0.28 | S4: 0.063 | T4: 0.0145 | U4: =SUM(Työntekijät[[#This Row],[Kunnallis- vero]:[Kirkollisvero]]) -> 0.3805 | V4: 20 | W4: 40 | X4: =SUM(Työntekijät[[#This Row],[Vakuutusvähennys]:[Muu säänn. vähennys]]) -> 60
B5: 1002 | C5: Teemu Sallinen | D5: 40 | I5: =SUM(Työntekijät[[#This Row],[Normaalit työtunnit]:[Sairas- poissaolot]])*Työntekijät[[#This Row],[Tuntipalkka]]+Työntekijät[[#This Row],[Ylityötunnit]]*Työntekijät[[#This Row],[Ylityökorvaus]] -> 320 | J5: =Työntekijät[[#This Row],[Brutto- palkka]]*Työntekijät[[#This Row],[Pidätetyt verot yhteensä]] + Työntekijät[[#This Row],[Säänn. vähennykset]] -> 131.76 | L5: =Työntekijät[[#This Row],[Brutto- palkka]]-Työntekijät[[#This Row],[Verot ja vähennykset]]-Työntekijät[[#This Row],[Muut vähennykset]] -> 188.24 | N5: 8 | O5: 1 | P5: 1 | Q5: 0.023 | R5: 0.28 | S5: 0.063 | T5: 0.0145 | U5: =SUM(Työntekijät[[#This Row],[Kunnallis- vero]:[Kirkollisvero]]) -> 0.3805 | V5: 0 | W5: 10 | X5: =SUM(Työntekijät[[#This Row],[Vakuutusvähennys]:[Muu säänn. vähennys]]) -> 10
B6: 1003 | C6: Tanja Varvikko | D6: 35 | E6: 3 | I6: =SUM(Työntekijät[[#This Row],[Normaalit työtunnit]:[Sairas- poissaolot]])*Työntekijät[[#This Row],[Tuntipalkka]]+Työntekijät[[#This Row],[Ylityötunnit]]*Työntekijät[[#This Row],[Ylityökorvaus]] -> 532 | J6: =Työntekijät[[#This Row],[Brutto- palkka]]*Työntekijät[[#This Row],[Pidätetyt verot yhteensä]] + Työntekijät[[#This Row],[Säänn. vähennykset]] -> 240.426 | L6: =Työntekijät[[#This Row],[Brutto- palkka]]-Työntekijät[[#This Row],[Verot ja vähennykset]]-Työntekijät[[#This Row],[Muut vähennykset]] -> 291.574 | N6: 14 | O6: 1 | P6: 3 | Q6: 0.023 | R6: 0.28 | S6: 0.063 | T6: 0.0145 | U6: =SUM(Työntekijät[[#This Row],[Kunnallis- vero]:[Kirkollisvero]]) -> 0.3805 | V6: 18 | W6: 20 | X6: =SUM(Työntekijät[[#This Row],[Vakuutusvähennys]:[Muu säänn. vähennys]]) -> 38
B7: 1008 | C7: Ari Suominen | D7: 50 | E7: 5 | F7: 1 | I7: =SUM(Työntekijät[[#This Row],[Normaalit työtunnit]:[Sairas- poissaolot]])*Työntekijät[[#This Row],[Tuntipalkka]]+Työntekijät[[#This Row],[Ylityötunnit]]*Työntekijät[[#This Row],[Ylityökorvaus]] -> 1120 | J7: =Työntekijät[[#This Row],[Brutto- palkka]]*Työntekijät[[#This Row],[Pidätetyt verot yhteensä]] + Työntekijät[[#This Row],[Säänn. vähennykset]] -> 441.16 | L7: =Työntekijät[[#This Row],[Brutto- palkka]]-Työntekijät[[#This Row],[Verot ja vähennykset]]-Työntekijät[[#This Row],[Muut vähennykset]] -> 678.84 | N7: 20 | O7: 1 | P7: 0 | Q7: 0.023 | R7: 0.28 | S7: 0.063 | T7: 0.0145 | U7: =SUM(Työntekijät[[#This Row],[Kunnallis- vero]:[Kirkollisvero]]) -> 0.3805 | V7: 15 | X7: =SUM(Työntekijät[[#This Row],[Vakuutusvähennys]:[Muu säänn. vähennys]]) -> 15
B8: 1011 | C8: Heidi Steen | D8: 40 | G8: 2 | H8: 15 | I8: =SUM(Työntekijät[[#This Row],[Normaalit työtunnit]:[Sairas- poissaolot]])*Työntekijät[[#This Row],[Tuntipalkka]]+Työntekijät[[#This Row],[Ylityötunnit]]*Työntekijät[[#This Row],[Ylityökorvaus]] -> 430 | J8: =Työntekijät[[#This Row],[Brutto- palkka]]*Työntekijät[[#This Row],[Pidätetyt verot yhteensä]] + Työntekijät[[#This Row],[Säänn. vähennykset]] -> 223.615 | L8: =Työntekijät[[#This Row],[Brutto- palkka]]-Työntekijät[[#This Row],[Verot ja vähennykset]]-Työntekijät[[#This Row],[Muut vähennykset]] -> 206.385 | N8: 10 | O8: 1 | P8: 0 | Q8: 0.023 | R8: 0.28 | S8: 0.063 | T8: 0.0145 | U8: =SUM(Työntekijät[[#This Row],[Kunnallis- vero]:[Kirkollisvero]]) -> 0.3805 | V8: 20 | W8: 40 | X8: =SUM(Työntekijät[[#This Row],[Vakuutusvähennys]:[Muu säänn. vähennys]]) -> 60
B9: 1012 | C9: Juha-Pekka Posti | D9: 40 | E9: 5 | F9: 1 | I9: =SUM(Työntekijät[[#This Row],[Normaalit työtunnit]:[Sairas- poissaolot]])*Työntekijät[[#This Row],[Tuntipalkka]]+Työntekijät[[#This Row],[Ylityötunnit]]*Työntekijät[[#This Row],[Ylityökorvaus]] -> 552 | J9: =Työntekijät[[#This Row],[Brutto- palkka]]*Työntekijät[[#This Row],[Pidätetyt verot yhteensä]] + Työntekijät[[#This Row],[Säänn. vähennykset]] -> 270.036 | L9: =Työntekijät[[#This Row],[Brutto- palkka]]-Työntekijät[[#This Row],[Verot ja vähennykset]]-Työntekijät[[#This Row],[Muut vähennykset]] -> 281.964 | N9: 12 | O9: 1 | P9: 4 | Q9: 0.023 | R9: 0.28 | S9: 0.063 | T9: 0.0145 | U9: =SUM(Työntekijät[[#This Row],[Kunnallis- vero]:[Kirkollisvero]]) -> 0.3805 | V9: 20 | W9: 40 | X9: =SUM(Työntekijät[[#This Row],[Vakuutusvähennys]:[Muu säänn. vähennys]]) -> 60
B10: 1025 | C10: Tiina Lassila | D10: 36 | F10: 2 | G10: 1 | H10: 18 | I10: =SUM(Työntekijät[[#This Row],[Normaalit työtunnit]:[Sairas- poissaolot]])*Työntekijät[[#This Row],[Tuntipalkka]]+Työntekijät[[#This Row],[Ylityötunnit]]*Työntekijät[[#This Row],[Ylityökorvaus]] -> 474 | J10: =Työntekijät[[#This Row],[Brutto- palkka]]*Työntekijät[[#This Row],[Pidätetyt verot yhteensä]] + Työntekijät[[#This Row],[Säänn. vähennykset]] -> 225.357 | K10: 25 | L10: =Työntekijät[[#This Row],[Brutto- palkka]]-Työntekijät[[#This Row],[Verot ja vähennykset]]-Työntekijät[[#This Row],[Muut vähennykset]] -> 223.643 | N10: 12 | O10: 1 | P10: 2 | Q10: 0.023 | R10: 0.28 | S10: 0.063 | T10: 0.0145 | U10: =SUM(Työntekijät[[#This Row],[Kunnallis- vero]:[Kirkollisvero]]) -> 0.3805 | V10: 25 | W10: 20 | X10: =SUM(Työntekijät[[#This Row],[Vakuutusvähennys]:[Muu säänn. vähennys]]) -> 45
B11: 1032 | C11: Matti Virtanen | D11: 40 | E11: 5 | F11: 1 | I11: =SUM(Työntekijät[[#This Row],[Normaalit työtunnit]:[Sairas- poissaolot]])*Työntekijät[[#This Row],[Tuntipalkka]]+Työntekijät[[#This Row],[Ylityötunnit]]*Työntekijät[[#This Row],[Ylityökorvaus]] -> 460 | J11: =Työntekijät[[#This Row],[Brutto- palkka]]*Työntekijät[[#This Row],[Pidätetyt verot yhteensä]] + Työntekijät[[#This Row],[Säänn. vähennykset]] -> 175.03 | K11: 50 | L11: =Työntekijät[[#This Row],[Brutto- palkka]]-Työntekijät[[#This Row],[Verot ja vähennykset]]-Työntekijät[[#This Row],[Muut vähennykset]] -> 234.97 | N11: 10 | O11: 1 | P11: 3 | Q11: 0.023 | R11: 0.28 | S11: 0.063 | T11: 0.0145 | U11: =SUM(Työntekijät[[#This Row],[Kunnallis- vero]:[Kirkollisvero]]) -> 0.3805 | X11: =SUM(Työntekijät[[#This Row],[Vakuutusvähennys]:[Muu säänn. vähennys]]) -> 0
B12: 1049 | C12: Anna Korhonen | D12: 40 | E12: 1 | I12: =SUM(Työntekijät[[#This Row],[Normaalit työtunnit]:[Sairas- poissaolot]])*Työntekijät[[#This Row],[Tuntipalkka]]+Työntekijät[[#This Row],[Ylityötunnit]]*Työntekijät[[#This Row],[Ylityökorvaus]] -> 615 | J12: =Työntekijät[[#This Row],[Brutto- palkka]]*Työntekijät[[#This Row],[Pidätetyt verot yhteensä]] + Työntekijät[[#This Row],[Säänn. vähennykset]] -> 259.0075 | K12: 23 | L12: =Työntekijät[[#This Row],[Brutto- palkka]]-Työntekijät[[#This Row],[Verot ja vähennykset]]-Työntekijät[[#This Row],[Muut vähennykset]] -> 332.9925 | N12: 15 | O12: 1 | P12: 2 | Q12: 0.023 | R12: 0.28 | S12: 0.063 | T12: 0.0145 | U12: =SUM(Työntekijät[[#This Row],[Kunnallis- vero]:[Kirkollisvero]]) -> 0.3805 | V12: 25 | X12: =SUM(Työntekijät[[#This Row],[Vakuutusvähennys]:[Muu säänn. vähennys]]) -> 25
B13: Summat | C13: =SUBTOTAL(103,Työntekijät[Työntekijän nimi]) -> 9 | D13: =SUBTOTAL(109,Työntekijät[Normaalit työtunnit]) -> 371 | E13: =SUBTOTAL(109,Työntekijät[Lomatunnit]) -> 24 | F13: =SUBTOTAL(109,Työntekijät[Sairas- poissaolot]) -> 6 | G13: =SUBTOTAL(109,Työntekijät[Ylityötunnit]) -> 3 | I13: =SUBTOTAL(109,Työntekijät[Brutto- palkka]) -> 5063 | J13: =SUBTOTAL(109,Työntekijät[Verot ja vähennykset]) -> 2239.4715 | K13: =SUBTOTAL(109,Työntekijät[Muut vähennykset]) -> 118 | L13: =SUBTOTAL(109,Työntekijät[Nettopalkka]) -> 2705.5285 | V13: =SUBTOTAL(109,Työntekijät[Vakuutusvähennys]) -> 143 | W13: =SUBTOTAL(109,Työntekijät[Muu säänn. vähennys]) -> 170 | X13: =SUBTOTAL(109,Työntekijät[Säänn. vähennykset]) -> 313

Sheet laskelma_malli (hidden)
C2: =CompanyName -> ADVENTURE WORKS
C3: JAKSO | D3: =PeriodEnding -> 2013-04-08 | G3: NIMI | H3: =IFERROR(INDEX(Työntekijät[Työntekijän nimi],Stub),"") -> Esko Sario | K3: TYÖNTEKIJÄTUNNUS | L3: =IFERROR(INDEX(Työntekijät[Tunnus],Stub),"") -> 1001
C4: Verostatus | E4: =IFERROR(INDEX(Työntekijät[Vero- status],Stub),"") -> 1 | G4: Valtion korvaus (W-4-lomake) | I4: =IFERROR(INDEX(Työntekijät[Valtion korvaus],Stub),"") -> 4 | K4: Tehdyt tunnit | M4: =IFERROR(INDEX(Työntekijät[Normaalit työtunnit],Stub),"") -> 50
C5: Tuntihinta | E5: =IFERROR(INDEX(Työntekijät[Tuntipalkka],Stub),"") -> 10 | G5: Ylityökorvaus | I5: =IFERROR(INDEX(Työntekijät[Ylityökorvaus],Stub),"") -> 0 | K5: Sairaspoissaolot | M5: =IFERROR(INDEX(Työntekijät[Sairas- poissaolot],Stub),"") -> 1
C6: Sosiaaliturvavero | E6: =IFERROR(INDEX(Työntekijät[Sosiaaliturva- maksu],Stub) * INDEX(Työntekijät[Brutto- palkka],Stub),"") -> 35.28 | G6: Tulovero | I6: =IFERROR(INDEX(Työntekijät[Tulovero],Stub) * INDEX(Työntekijät[Brutto- palkka],Stub),"") -> 156.8 | K6: Lomatunnit | M6: =IFERROR(INDEX(Työntekijät[Lomatunnit],Stub),"") -> 5
C7: Kirkollisvero | E7: =IFERROR(INDEX(Työntekijät[Kirkollisvero],Stub) * INDEX(Työntekijät[Brutto- palkka],Stub),"") -> 8.12 | G7: Kunnallisvero | I7: =IFERROR(INDEX(Työntekijät[Kunnallis- vero],Stub) * INDEX(Työntekijät[Brutto- palkka],Stub),"") -> 12.88 | K7: Ylityötunnit | M7: =IFERROR(INDEX(Työntekijät[Ylityötunnit],Stub),"") -> 0
C8: Vakuutusvähennys | E8: =IFERROR(INDEX(Työntekijät[Vakuutusvähennys],Stub),"") -> 20 | G8: Muu säännöllinen vähennys | I8: =IFERROR(INDEX(Työntekijät[Muu säänn. vähennys],Stub),"") -> 40 | K8: Bruttopalkka | M8: =IFERROR(INDEX(Työntekijät[Brutto- palkka],Stub),"") -> 560
C9: Verot yhteensä ja | E9: =IFERROR(INDEX(Työntekijät[Verot ja vähennykset],Stub),"") -> 273.08 | G9: Muut vähennykset | I9: =IFERROR(INDEX(Työntekijät[Muut vähennykset],Stub),"") -> 20 | K9: Verot ja vähennykset yhteensä | M9: =IFERROR(INDEX(Työntekijät[Verot ja vähennykset],Stub) + INDEX(Työntekijät[Muut vähennykset],Stub),"") -> 293.08
C10: normaalit vähennykset
K11: Nettopalkka | M11: =IFERROR(INDEX(Työntekijät[Nettopalkka],Stub),"") -> 266.92
C14: =CompanyName -> ADVENTURE WORKS
C15: JAKSO | D15: =PeriodEnding -> 2013-04-08 | G15: NIMI | H15: =IFERROR(INDEX(Työntekijät[Työntekijän nimi],Stub),"") -> Teemu Sallinen | K15: TYÖNTEKIJÄTUNNUS | L15: =IFERROR(INDEX(Työntekijät[Tunnus],Stub),"") -> 1002
C16: Verostatus | E16: =IFERROR(INDEX(Työntekijät[Vero- status],Stub),"") -> 1 | G16: Valtion korvaus (W-4-lomake) | I16: =IFERROR(INDEX(Työntekijät[Valtion korvaus],Stub),"") -> 1 | K16: Tehdyt tunnit | M16: =IFERROR(INDEX(Työntekijät[Normaalit työtunnit],Stub),"") -> 40
C17: Tuntihinta | E17: =IFERROR(INDEX(Työntekijät[Tuntipalkka],Stub),"") -> 8 | G17: Ylityökorvaus | I17: =IFERROR(INDEX(Työntekijät[Ylityökorvaus],Stub),"") -> 0 | K17: Sairaspoissaolot | M17: =IFERROR(INDEX(Työntekijät[Sairas- poissaolot],Stub),"") -> 0
C18: Sosiaaliturvavero | E18: =IFERROR(INDEX(Työntekijät[Sosiaaliturva- maksu],Stub) * INDEX(Työntekijät[Brutto- palkka],Stub),"") -> 20.16 | G18: Tulovero | I18: =IFERROR(INDEX(Työntekijät[Tulovero],Stub) * INDEX(Työntekijät[Brutto- palkka],Stub),"") -> 89.6 | K18: Lomatunnit | M18: =IFERROR(INDEX(Työntekijät[Lomatunnit],Stub),"") -> 0
C19: Kirkollisvero | E19: =IFERROR(INDEX(Työntekijät[Kirkollisvero],Stub) * INDEX(Työntekijät[Brutto- palkka],Stub),"") -> 4.64 | G19: Kunnallisvero | I19: =IFERROR(INDEX(Työntekijät[Kunnallis- vero],Stub) * INDEX(Työntekijät[Brutto- palkka],Stub),"") -> 7.36 | K19: Ylityötunnit | M19: =IFERROR(INDEX(Työntekijät[Ylityötunnit],Stub),"") -> 0
C20: Vakuutusvähennys | E20: =IFERROR(INDEX(Työntekijät[Vakuutusvähennys],Stub),"") -> 0 | G20: Muu säännöllinen vähennys | I20: =IFERROR(INDEX(Työntekijät[Muu säänn. vähennys],Stub),"") -> 10 | K20: Bruttopalkka | M20: =IFERROR(INDEX(Työntekijät[Brutto- palkka],Stub),"") -> 320
C21: Verot yhteensä ja | E21: =IFERROR(INDEX(Työntekijät[Verot ja vähennykset],Stub),"") -> 131.76 | G21: Muut vähennykset | I21: =IFERROR(INDEX(Työntekijät[Muut vähennykset],Stub),"") -> 0 | K21: Verot ja vähennykset yhteensä | M21: =IFERROR(INDEX(Työntekijät[Verot ja vähennykset],Stub) + INDEX(Työntekijät[Muut vähennykset],Stub),"") -> 131.76
C22: normaalit vähennykset
K23: Nettopalkka | M23: =IFERROR(INDEX(Työntekijät[Nettopalkka],Stub),"") -> 188.24
C26: =CompanyName -> ADVENTURE WORKS
C27: JAKSO | D27: =PeriodEnding -> 2013-04-08 | G27: NIMI | H27: =IFERROR(INDEX(Työntekijät[Työntekijän nimi],Stub),"") -> Tanja Varvikko | K27: TYÖNTEKIJÄTUNNUS | L27: =IFERROR(INDEX(Työntekijät[Tunnus],Stub),"") -> 1003
C28: Verostatus | E28: =IFERROR(INDEX(Työntekijät[Vero- status],Stub),"") -> 1 | G28: Valtion korvaus (W-4-lomake) | I28: =IFERROR(INDEX(Työntekijät[Valtion korvaus],Stub),"") -> 3 | K28: Tehdyt tunnit | M28: =IFERROR(INDEX(Työntekijät[Normaalit työtunnit],Stub),"") -> 35
C29: Tuntihinta | E29: =IFERROR(INDEX(Työntekijät[Tuntipalkka],Stub),"") -> 14 | G29: Ylityökorvaus | I29: =IFERROR(INDEX(Työntekijät[Ylityökorvaus],Stub),"") -> 0 | K29: Sairaspoissaolot | M29: =IFERROR(INDEX(Työntekijät[Sairas- poissaolot],Stub),"") -> 0
C30: Sosiaaliturvavero | E30: =IFERROR(INDEX(Työntekijät[Sosiaaliturva- maksu],Stub) * INDEX(Työntekijät[Brutto- palkka],Stub),"") -> 33.516 | G30: Tulovero | I30: =IFERROR(INDEX(Työntekijät[Tulovero],Stub) * INDEX(Työntekijät[Brutto- palkka],Stub),"") -> 148.96 | K30: Lomatunnit | M30: =IFERROR(INDEX(Työntekijät[Lomatunnit],Stub),"") -> 3
C31: Kirkollisvero | E31: =IFERROR(INDEX(Työntekijät[Kirkollisvero],Stub) * INDEX(Työntekijät[Brutto- palkka],Stub),"") -> 7.714 | G31: Kunnallisvero | I31: =IFERROR(INDEX(Työntekijät[Kunnallis- vero],Stub) * INDEX(Työntekijät[Brutto- palkka],Stub),"") -> 12.236 | K31: Ylityötunnit | M31: =IFERROR(INDEX(Työntekijät[Ylityötunnit],Stub),"") -> 0
C32: Vakuutusvähennys | E32: =IFERROR(INDEX(Työntekijät[Vakuutusvähennys],Stub),"") -> 18 | G32: Muu säännöllinen vähennys | I32: =IFERROR(INDEX(Työntekijät[Muu säänn. vähennys],Stub),"") -> 20 | K32: Bruttopalkka | M32: =IFERROR(INDEX(Työntekijät[Brutto- palkka],Stub),"") -> 532
C33: Verot yhteensä ja | E33: =IFERROR(INDEX(Työntekijät[Verot ja vähennykset],Stub),"") -> 240.426 | G33: Muut vähennykset | I33: =IFERROR(INDEX(Työntekijät[Muut vähennykset],Stub),"") -> 0 | K33: Verot ja vähennykset yhteensä | M33: =IFERROR(INDEX(Työntekijät[Verot ja vähennykset],Stub) + INDEX(Työntekijät[Muut vähennykset],Stub),"") -> 240.426
C34: normaalit vähennykset
K35: Nettopalkka | M35: =IFERROR(INDEX(Työntekijät[Nettopalkka],Stub),"") -> 291.574
C38: =CompanyName -> ADVENTURE WORKS
C39: JAKSO | D39: =PeriodEnding -> 2013-04-08 | G39: NIMI | H39: =IFERROR(INDEX(Työntekijät[Työntekijän nimi],Stub),"") -> Ari Suominen | K39: TYÖNTEKIJÄTUNNUS | L39: =IFERROR(INDEX(Työntekijät[Tunnus],Stub),"") -> 1008
C40: Verostatus | E40: =IFERROR(INDEX(Työntekijät[Vero- status],Stub),"") -> 1 | G40: Valtion korvaus (W-4-lomake) | I40: =IFERROR(INDEX(Työntekijät[Valtion korvaus],Stub),"") -> 0 | K40: Tehdyt tunnit | M40: =IFERROR(INDEX(Työntekijät[Normaalit työtunnit],Stub),"") -> 50
C41: Tuntihinta | E41: =IFERROR(INDEX(Työntekijät[Tuntipalkka],Stub),"") -> 20 | G41: Ylityökorvaus | I41: =IFERROR(INDEX(Työntekijät[Ylityökorvaus],Stub),"") -> 0 | K41: Sairaspoissaolot | M41: =IFERROR(INDEX(Työntekijät[Sairas- poissaolot],Stub),"") -> 1
C42: Sosiaaliturvavero | E42: =IFERROR(INDEX(Työntekijät[Sosiaaliturva- maksu],Stub) * INDEX(Työntekijät[Brutto- palkka],Stub),"") -> 70.56 | G42: Tulovero | I42: =IFERROR(INDEX(Työntekijät[Tulovero],Stub) * INDEX(Työntekijät[Brutto- palkka],Stub),"") -> 313.6 | K42: Lomatunnit | M42: =IFERROR(INDEX(Työntekijät[Lomatunnit],Stub),"") -> 5
C43: Kirkollisvero | E43: =IFERROR(INDEX(Työntekijät[Kirkollisvero],Stub) * INDEX(Työntekijät[Brutto- palkka],Stub),"") -> 16.24 | G43: Kunnallisvero | I43: =IFERROR(INDEX(Työntekijät[Kunnallis- vero],Stub) * INDEX(Työntekijät[Brutto- palkka],Stub),"") -> 25.76 | K43: Ylityötunnit | M43: =IFERROR(INDEX(Työntekijät[Ylityötunnit],Stub),"") -> 0
C44: Vakuutusvähennys | E44: =IFERROR(INDEX(Työntekijät[Vakuutusvähennys],Stub),"") -> 15 | G44: Muu säännöllinen vähennys | I44: =IFERROR(INDEX(Työntekijät[Muu säänn. vähennys],Stub),"") -> 0 | K44: Bruttopalkka | M44: =IFERROR(INDEX(Työntekijät[Brutto- palkka],Stub),"") -> 1120
C45: Verot yhteensä ja | E45: =IFERROR(INDEX(Työntekijät[Verot ja vähennykset],Stub),"") -> 441.16 | G45: Muut vähennykset | I45: =IFERROR(INDEX(Työntekijät[Muut vähennykset],Stub),"") -> 0 | K45: Verot ja vähennykset yhteensä | M45: =IFERROR(INDEX(Työntekijät[Verot ja vähennykset],Stub) + INDEX(Työntekijät[Muut vähennykset],Stub),"") -> 441.16
C46: normaalit vähennykset
K47: Nettopalkka | M47: =IFERROR(INDEX(Työntekijät[Nettopalkka],Stub),"") -> 678.84
